fUSD/lending_fUSD_20250602
["ID","MTS","AMOUNT","RATE_DAILY","PERIOD"]
[363850023,1748898651710,-166.27,0.000317,31]
[363850025,1748898651720,-166.27,0.000317,31]
[363850027,1748898651730,-166.27,0.000317,31]
[363850029,1748898651741,-166.27,0.000317,31]
[363850031,1748898651751,-166.27,0.000317,31]
[363850033,1748898651760,-166.27,0.000317,31]
[363850035,1748898651769,-166.27,0.000317,31]
[363850037,1748898651778,-166.27,0.000317,31]
[363850039,1748898651788,-166.27,0.000317,31]
[363850041,1748898651797,-166.27,0.000317,31]
[363850042,1748898651806,-166.27,0.000317,31]
[363850044,1748898651815,-166.27,0.000317,31]
[363850047,1748898651827,-166.27,0.000317,31]
[363850049,1748898651836,-166.27,0.000317,31]
[363850051,1748898651845,-961.04,0.000317,2]
[363850053,1748898651854,-150.0,0.00031723,2]
[363850054,1748898651864,-500.0,0.00031738,7]
[363850056,1748898651874,-24084.98926182,0.00031743,2]
[363850058,1748898651883,-600.22501597,0.00031755,26]
[363850060,1748898651892,-152.0,0.00031821,10]
[363850062,1748898651901,-633.0,0.0003187,2]
[363850064,1748898651910,-633.0,0.0003187,2]
[363850066,1748898651920,-633.0,0.0003187,2]
[363850068,1748898651930,-633.0,0.0003187,2]
[363850070,1748898651939,-633.0,0.0003187,2]
[363850072,1748898651949,-633.0,0.0003187,2]
[363850074,1748898651959,-633.0,0.0003187,2]
[363850076,1748898651969,-633.0,0.0003187,2]
[363850078,1748898651978,-633.0,0.0003187,2]
[363850080,1748898651991,-633.0,0.0003187,2]
[363850082,1748898652000,-633.0,0.0003187,2]
[363850084,1748898652010,-633.0,0.0003187,2]
[363850086,1748898652019,-633.0,0.0003187,2]
[363850088,1748898652028,-633.0,0.0003187,2]
[363850090,1748898652037,-327.0,0.0003187,2]
[363850092,1748898652047,-327.0,0.0003187,2]
[363850094,1748898652056,-327.0,0.0003187,2]
[363850096,1748898652066,-327.0,0.0003187,2]
[363850098,1748898652076,-327.0,0.0003187,2]
[363850100,1748898652086,-327.0,0.0003187,2]
[363850102,1748898652095,-327.0,0.0003187,2]
[363850104,1748898652104,-327.0,0.0003187,2]
[363850106,1748898652114,-327.0,0.0003187,2]
[363850108,1748898652123,-327.0,0.0003187,2]
[363850110,1748898652132,-327.0,0.0003187,2]
[363850112,1748898652142,-327.0,0.0003187,2]
[363850113,1748898652151,-327.0,0.0003187,2]
[363850115,1748898652160,-327.0,0.0003187,2]
[363850117,1748898652170,-633.0,0.0003187,2]
[363850119,1748898652179,-633.0,0.0003187,2]
[363850121,1748898652189,-633.0,0.0003187,2]
[363850123,1748898652199,-633.0,0.0003187,2]
[363850125,1748898652208,-633.0,0.0003187,2]
[363850127,1748898652218,-633.0,0.0003187,2]
[363850129,1748898652227,-633.0,0.0003187,2]
[363850131,1748898652236,-633.0,0.0003187,2]
[363850133,1748898652246,-633.0,0.0003187,2]
[363850135,1748898652255,-633.0,0.0003187,2]
[363850137,1748898652264,-633.0,0.0003187,2]
[363850139,1748898652274,-633.0,0.0003187,2]
[363850141,1748898652283,-633.0,0.0003187,2]
[363850143,1748898652293,-633.0,0.0003187,2]
[363850145,1748898652302,-327.0,0.0003187,2]
[363850147,1748898652312,-327.0,0.0003187,2]
[363850149,1748898652321,-327.0,0.0003187,2]
[363850151,1748898652332,-327.0,0.0003187,2]
[363850153,1748898652341,-327.0,0.0003187,2]
[363850155,1748898652351,-327.0,0.0003187,2]
[363850157,1748898652360,-327.0,0.0003187,2]
[363850159,1748898652369,-327.0,0.0003187,2]
[363850161,1748898652379,-327.0,0.0003187,2]
[363850163,1748898652388,-327.0,0.0003187,2]
[363850165,1748898652397,-327.0,0.0003187,2]
[363850167,1748898652407,-327.0,0.0003187,2]
[363850169,1748898652417,-327.0,0.0003187,2]
[363850171,1748898652427,-327.0,0.0003187,2]
[363850183,1748898652532,-633.0,0.0003187,2]
[363850186,1748898652552,-633.0,0.0003187,2]
[363850188,1748898652562,-633.0,0.0003187,2]
[363850190,1748898652571,-633.0,0.0003187,2]
[363850192,1748898652580,-633.0,0.0003187,2]
[363850194,1748898652589,-633.0,0.0003187,2]
[363850196,1748898652599,-633.0,0.0003187,2]
[363850198,1748898652612,-633.0,0.0003187,2]
[363850200,1748898652622,-633.0,0.0003187,2]
[363850202,1748898652631,-633.0,0.0003187,2]
[363850204,1748898652640,-327.0,0.0003187,2]
[363850205,1748898652650,-327.0,0.0003187,2]
[363850207,1748898652660,-327.0,0.0003187,2]
[363850209,1748898652669,-327.0,0.0003187,2]
[363850211,1748898652678,-327.0,0.0003187,2]
[363850213,1748898652688,-327.0,0.0003187,2]
[363850215,1748898652697,-327.0,0.0003187,2]
[363850217,1748898652706,-327.0,0.0003187,2]
[363850219,1748898652715,-327.0,0.0003187,2]
[363850221,1748898652724,-327.0,0.0003187,2]
[363850223,1748898652734,-633.0,0.00031871,2]
[363850225,1748898652744,-633.0,0.00031871,2]
[363850227,1748898652753,-633.0,0.00031871,2]
[363850229,1748898652762,-633.0,0.00031871,2]
[363850231,1748898652772,-633.0,0.00031871,2]
[363850233,1748898652781,-633.0,0.00031871,2]
[363850235,1748898652790,-633.0,0.00031871,2]
[363850237,1748898652800,-633.0,0.00031871,2]
[363850239,1748898652809,-633.0,0.00031871,2]
[363850241,1748898652818,-633.0,0.00031871,2]
[363850243,1748898652828,-633.0,0.00031871,2]
[363850245,1748898652839,-633.0,0.00031871,2]
[363850247,1748898652848,-633.0,0.00031871,2]
[363850249,1748898652856,-633.0,0.00031871,2]
[363850251,1748898652866,-633.0,0.00031871,2]
[363850253,1748898652875,-633.0,0.00031871,2]
[363850255,1748898652885,-633.0,0.00031871,2]
[363850257,1748898652893,-327.0,0.00031871,2]
[363850259,1748898652903,-327.0,0.00031871,2]
[363850261,1748898652912,-327.0,0.00031871,2]
[363850263,1748898652921,-327.0,0.00031871,2]
[363850265,1748898652930,-327.0,0.00031871,2]
[363850267,1748898652940,-327.0,0.00031871,2]
[363850268,1748898652949,-327.0,0.00031871,2]
[363850269,1748898652958,-327.0,0.00031871,2]
[363850270,1748898652967,-327.0,0.00031871,2]
[363850271,1748898652976,-327.0,0.00031871,2]
[363850272,1748898652986,-327.0,0.00031871,2]
[363850273,1748898652995,-327.0,0.00031871,2]
[363850274,1748898653003,-327.0,0.00031871,2]
[363850275,1748898653012,-327.0,0.00031871,2]
[363850276,1748898653021,-327.0,0.00031871,2]
[363850277,1748898653031,-327.0,0.00031871,2]
[363850278,1748898653040,-327.0,0.00031871,2]
[363850280,1748898653049,-633.0,0.00031871,2]
[363850282,1748898653058,-633.0,0.00031871,2]
[363850284,1748898653067,-633.0,0.00031871,2]
[363850286,1748898653076,-633.0,0.00031871,2]
[363850288,1748898653085,-633.0,0.00031871,2]
[363850290,1748898653095,-633.0,0.00031871,2]
[363850292,1748898653104,-633.0,0.00031871,2]
[363850294,1748898653113,-633.0,0.00031871,2]
[363850296,1748898653122,-633.0,0.00031871,2]
[363850298,1748898653131,-633.0,0.00031871,2]
[363850300,1748898653141,-633.0,0.00031871,2]
[363850302,1748898653151,-633.0,0.00031871,2]
[363850304,1748898653160,-633.0,0.00031871,2]
[363850306,1748898653169,-633.0,0.00031871,2]
[363850308,1748898653179,-327.0,0.00031871,2]
[363850310,1748898653187,-327.0,0.00031871,2]
[363850312,1748898653197,-327.0,0.00031871,2]
[363850314,1748898653206,-327.0,0.00031871,2]
[363850316,1748898653215,-327.0,0.00031871,2]
[363850318,1748898653225,-327.0,0.00031871,2]
[363850320,1748898653236,-327.0,0.00031871,2]
[363850322,1748898653245,-327.0,0.00031871,2]
[363850324,1748898653255,-327.0,0.00031871,2]
[363850326,1748898653264,-327.0,0.00031871,2]
[363850328,1748898653274,-327.0,0.00031871,2]
[363850330,1748898653284,-327.0,0.00031871,2]
[363850332,1748898653293,-327.0,0.00031871,2]
[363850334,1748898653302,-327.0,0.00031871,2]
[363850336,1748898653311,-633.0,0.00031871,2]
[363850338,1748898653321,-633.0,0.00031871,2]
[363850340,1748898653330,-633.0,0.00031871,2]
[363850342,1748898653339,-633.0,0.00031871,2]
[363850344,1748898653348,-633.0,0.00031871,2]
[363850346,1748898653358,-633.0,0.00031871,2]
[363850348,1748898653368,-633.0,0.00031871,2]
[363850350,1748898653377,-633.0,0.00031871,2]
[363850351,1748898653386,-633.0,0.00031871,2]
[363850353,1748898653396,-633.0,0.00031871,2]
[363850355,1748898653406,-633.0,0.00031871,2]
[363850357,1748898653415,-633.0,0.00031871,2]
[363850359,1748898653424,-633.0,0.00031871,2]
[363850361,1748898653433,-633.0,0.00031871,2]
[363850363,1748898653443,-327.0,0.00031871,2]
[363850365,1748898653452,-327.0,0.00031871,2]
[363850367,1748898653461,-327.0,0.00031871,2]
[363850369,1748898653470,-327.0,0.00031871,2]
[363850371,1748898653479,-327.0,0.00031871,2]
[363850373,1748898653490,-327.0,0.00031871,2]
[363850375,1748898653499,-327.0,0.00031871,2]
[363850377,1748898653508,-327.0,0.00031871,2]
[363850379,1748898653517,-327.0,0.00031871,2]
[363850381,1748898653526,-327.0,0.00031871,2]
[363850383,1748898653536,-327.0,0.00031871,2]
[363850385,1748898653545,-327.0,0.00031871,2]
[363850387,1748898653555,-327.0,0.00031871,2]
[363850389,1748898653565,-327.0,0.00031871,2]
[363850391,1748898653574,-633.0,0.00031871,2]
[363850393,1748898653583,-633.0,0.00031871,2]
[363850395,1748898653592,-633.0,0.00031871,2]
[363850397,1748898653603,-633.0,0.00031871,2]
[363850399,1748898653616,-633.0,0.00031871,2]
[363850401,1748898653627,-633.0,0.00031871,2]
[363850403,1748898653636,-633.0,0.00031871,2]
[363850405,1748898653647,-633.0,0.00031871,2]
[363850407,1748898653656,-633.0,0.00031871,2]
[363850409,1748898653665,-633.0,0.00031871,2]
[363850411,1748898653674,-633.0,0.00031871,2]
[363850413,1748898653683,-633.0,0.00031871,2]
[363850415,1748898653693,-633.0,0.00031871,2]
[363850417,1748898653703,-633.0,0.00031871,2]
[363850419,1748898653712,-327.0,0.00031871,2]
[363850421,1748898653721,-327.0,0.00031871,2]
[363850423,1748898653731,-327.0,0.00031871,2]
[363850425,1748898653740,-327.0,0.00031871,2]
[363850427,1748898653750,-327.0,0.00031871,2]
[363850429,1748898653760,-327.0,0.00031871,2]
[363850431,1748898653769,-327.0,0.00031871,2]
[363850433,1748898653779,-327.0,0.00031871,2]
[363850435,1748898653788,-327.0,0.00031871,2]
[363850437,1748898653797,-327.0,0.00031871,2]
[363850439,1748898653806,-327.0,0.00031871,2]
[363850441,1748898653815,-327.0,0.00031871,2]
[363850443,1748898653824,-327.0,0.00031871,2]
[363850445,1748898653835,-327.0,0.00031871,2]
[363850447,1748898653844,-264.561949,0.000319,7]
[363850449,1748898653853,-246.409088,0.000319,7]
[363850451,1748898653862,-246.409094,0.000319,7]
[363850453,1748898653871,-400.0,0.000319,11]
[363850455,1748898653880,-6341.46614687,0.00031911,2]
[363850457,1748898653890,-4000.0,0.00032,4]
[363850459,1748898653900,-1538.64352822,0.00032,2]
[363850461,1748898653909,-35000.0,0.00032,2]
[363850463,1748898653918,-11458.59953539,0.00032,2]
[363850465,1748898653928,-150.0,0.00032,2]
[363850467,1748898653937,-1800.0,0.00032,33]
[363850469,1748898653946,-1000.0,0.00032,30]
[363850471,1748898653955,-500.0,0.00032,10]
[363850473,1748898653964,-1000.0,0.00032,2]
[363850475,1748898653973,-5000.0,0.00032,2]
[363850477,1748898653984,-154.12736608,0.00032,30]
[363850478,1748898653994,-1000.0,0.00032,2]
[363850480,1748898654004,-1000.0,0.00032,2]
[363850482,1748898654013,-839.9998,0.00032,2]
[363850484,1748898654023,-151.0,0.00032,7]
[363850486,1748898654032,-300.9441256,0.00032,7]
[363850488,1748898654041,-327.221117,0.00032,7]
[363850490,1748898654051,-327.221118,0.00032,7]
[363850492,1748898654060,-368.016034,0.00032,7]
[363850494,1748898654069,-368.016027,0.00032,7]
[363850496,1748898654079,-150.0,0.00032027,2]
[363850498,1748898654088,-200.81,0.00032028,2]
[363850500,1748898654097,-2322.89,0.00032028,2]
[363850502,1748898654107,-908.11,0.00032028,2]
[363850504,1748898654117,-326.12,0.00032028,2]
[363850506,1748898654127,-303.07,0.00032028,2]
[363850508,1748898654136,-150.0,0.00032028,2]
[363850510,1748898654145,-150.0,0.00032034,2]
[363850512,1748898654155,-150.0,0.00032034,2]
[363850514,1748898654165,-150.0,0.00032034,2]
[363850516,1748898654174,-150.0,0.00032034,2]
[363850518,1748898654184,-500.0,0.00032054,7]
[363850520,1748898654194,-150.0,0.00032071,2]
[363850522,1748898654203,-170.34,0.00032071,2]
[363850524,1748898654212,-1161.73,0.00032071,2]
[363850526,1748898654223,-354.01,0.00032071,2]
[363850528,1748898654232,-24084.98926182,0.000321,2]
[363850530,1748898654243,-985.52,0.0003215,6]
[363850532,1748898654252,-110650.0201359,0.00032156,2]
[363850534,1748898654262,-1373.81812971,0.0003219,2]
[363850536,1748898654272,-189702.3,0.000322,7]
[363850538,1748898654282,-151.0,0.000322,7]
[363850540,1748898654291,-151.0,0.000322,7]
[363850542,1748898654301,-151.0,0.000322,7]
[363850544,1748898654310,-264.959482,0.000322,7]
[363850546,1748898654320,-264.959482,0.000322,7]
[363850548,1748898654330,-303.55734,0.000322,7]
[363850550,1748898654339,-303.55734,0.000322,7]
[363850552,1748898654349,-207.25385,0.000322,7]
[363850554,1748898654359,-207.25385,0.000322,7]
[363850556,1748898654369,-2640.079016,0.000322,7]
[363850558,1748898654379,-2640.079007,0.000322,7]
[363850560,1748898654388,-353.724013,0.000322,7]
[363850562,1748898654397,-353.724012,0.000322,7]
[363850564,1748898654406,-347.34,0.00032258,2]
[363850566,1748898654415,-204.0,0.00032293,11]
[363850568,1748898654424,-7000.0,0.0003232,2]
[363850570,1748898654435,-6341.46614687,0.00032356,2]
[363850572,1748898654444,-1476.55,0.000324,7]
[363850574,1748898654454,-370.76325006,0.000324,60]
[363850576,1748898654463,-370.76324989,0.000324,60]
[363850578,1748898654472,-370.76324989,0.000324,60]
[363850580,1748898654481,-370.76324989,0.000324,60]
[363850582,1748898654492,-370.76324989,0.000324,60]
[363850584,1748898654502,-150.0,0.00032444,2]
[363850586,1748898654511,-500.0,0.00032473,7]
[363850588,1748898654521,-591.55785023,0.00032498,2]
[363850590,1748898654531,-1000.0,0.000325,30]
[363850592,1748898654540,-1000.0,0.000325,2]
[363850594,1748898654550,-2133.51533449,0.0003254,30]
[363850596,1748898654560,-500.0,0.00032562,7]
[363850598,1748898654570,-2000.0,0.000326,2]
[363850600,1748898654579,-200.56135024,0.00032603,3]
[363850602,1748898654589,-169.0,0.00032622,14]
[363850604,1748898654599,-151.68,0.00032666,2]
[363850606,1748898654612,-152.0,0.00032668,11]
[363850608,1748898654621,-985.52,0.00032698,7]
[363850610,1748898654631,-961.04,0.000327,4]
[363850612,1748898654641,-1000.0,0.0003275,30]
[363850614,1748898654650,-1000.0,0.00032753,2]
[363850616,1748898654659,-1253.0,0.00032763,2]
[363850618,1748898654669,-4676.52270388,0.000328,2]
[363850620,1748898654679,-6341.46614687,0.000328,2]
[363850622,1748898654690,-500.0,0.00032801,7]
[363850624,1748898654700,-181.08010149,0.00032811,2]
[363850626,1748898654710,-248.71531821,0.00032811,2]
[363850628,1748898654719,-4000.0,0.00032877,30]
[363850630,1748898654728,-500.0,0.00032877,2]
[363850632,1748898654738,-333.35,0.00032877,2]
[363850634,1748898654747,-6475.07,0.00032877,2]
[363850636,1748898654757,-323.776522,0.00032877,7]
[363850638,1748898654766,-323.776522,0.00032877,7]
[363850640,1748898654776,-323.776522,0.00032877,7]
[363850642,1748898654785,-323.776522,0.00032877,7]
[363850644,1748898654794,-323.776522,0.00032877,7]
[363850646,1748898654805,-323.776522,0.00032877,7]
[363850648,1748898654814,-323.776522,0.00032877,7]
[363850651,1748898654823,-323.776522,0.00032877,7]
[363850653,1748898654833,-323.776522,0.00032877,7]
[363850654,1748898654842,-323.776522,0.00032877,7]
[363850657,1748898654852,-323.776522,0.00032877,7]
[363850659,1748898654861,-323.776522,0.00032877,7]
[363850661,1748898654871,-323.776522,0.00032877,7]
[363850662,1748898654880,-323.776522,0.00032877,7]
[363850665,1748898654889,-323.776522,0.00032877,7]
[363850667,1748898654899,-323.776522,0.00032877,7]
[363850669,1748898654908,-323.776522,0.00032877,7]
[363850671,1748898654918,-323.776522,0.00032877,7]
[363850672,1748898654928,-323.776522,0.00032877,7]
[363850673,1748898654937,-323.776513,0.00032877,7]
[363850674,1748898654946,-200.0,0.00032877,60]
[363850675,1748898654956,-932.0,0.00032877,2]
[363850676,1748898654965,-4669.2132162,0.00032877,2]
[363850677,1748898654974,-4669.2132163,0.00032877,2]
[363850678,1748898654984,-150.0,0.00032877,9]
[363850679,1748898654993,-1152.0,0.00032895,2]
[363850680,1748898655002,-695.13685827,0.000329,120]
[363850681,1748898655012,-189702.3,0.000329,14]
[363850683,1748898655021,-151.0,0.000329,7]
[363850685,1748898655031,-151.0,0.000329,7]
[363850687,1748898655042,-264.959482,0.000329,7]
[363850689,1748898655053,-264.959478,0.000329,7]
[363850691,1748898655062,-303.55734,0.000329,7]
[363850693,1748898655071,-303.557348,0.000329,7]
[363850695,1748898655081,-207.25385,0.000329,7]
[363850697,1748898655090,-207.25385,0.000329,7]
[363850699,1748898655100,-932.0,0.00032904,2]
[363850701,1748898655110,-150.0,0.00032904,9]
[363850703,1748898655120,-932.0,0.00032932,2]
[363850705,1748898655129,-150.0,0.00032932,9]
[363850707,1748898655139,-932.0,0.00032959,2]
[363850709,1748898655148,-150.0,0.00032959,9]
[363850711,1748898655157,-932.0,0.00032987,2]
[363850713,1748898655167,-150.0,0.00032987,9]
[363850715,1748898655176,-4577.05938001,0.00033,2]
[363850717,1748898655186,-25227.31806113,0.00033,2]
[363850719,1748898655196,-1000.0,0.00033,12]
[363850721,1748898655206,-517.0,0.00033,7]
[363850723,1748898655216,-150.0,0.00033,2]
[363850725,1748898655226,-1000.0,0.00033,2]
[363850727,1748898655236,-1800.0,0.00033,34]
[363850729,1748898655245,-1000.0,0.00033,30]
[363850731,1748898655255,-1000.0,0.00033,2]
[363850733,1748898655265,-205.09898736,0.00033,30]
[363850735,1748898655275,-5000.0,0.00033,2]
[363850737,1748898655285,-151.0,0.00033,20]
[363850739,1748898655294,-150.0,0.00033,40]
[363850741,1748898655304,-2177.9631871,0.00033,7]
[363850743,1748898655313,-1995.48471273,0.00033,2]
[363850745,1748898655323,-10691.25,0.00033,14]
[363850747,1748898655332,-435.37236757,0.00033,120]
[363850749,1748898655342,-2544.64974982,0.00033,120]
[363850751,1748898655352,-151.0,0.00033,7]
[363850753,1748898655363,-528.106698,0.00033,14]
[363850755,1748898655372,-188.421924,0.00033,7]
[363850757,1748898655382,-4000.0,0.00033,4]
[363850759,1748898655392,-214.0,0.00033,2]
[363850761,1748898655401,-932.0,0.00033014,2]
[363850763,1748898655411,-209.31924171,0.00033014,9]
[363850765,1748898655420,-627.36,0.00033021,2]
[363850767,1748898655430,-932.0,0.00033041,2]
[363850769,1748898655440,-932.0,0.00033069,2]
[363850771,1748898655449,-500.0,0.00033089,7]
[363850773,1748898655459,-932.0,0.00033096,2]
[363850775,1748898655468,-217.39186817,0.000331,2]
[363850777,1748898655477,-932.0,0.00033124,2]
[363850779,1748898655486,-300.0,0.00033135,30]
[363850781,1748898655496,-200.0,0.00033151,2]
[363850798,1748898655650,-932.0,0.00033151,2]
[363850800,1748898655660,-150.0,0.00033165,2]
[363850802,1748898655670,-932.0,0.00033178,2]
[363850804,1748898655680,-932.0,0.00033206,2]
[363850806,1748898655690,-162.0,0.00033226,30]
[363850808,1748898655699,-932.0,0.00033233,2]
[363850810,1748898655708,-500.0,0.00033236,7]
[363850812,1748898655717,-985.52,0.00033246,8]
[363850814,1748898655726,-932.0,0.00033261,2]
[363850816,1748898655735,-932.0,0.00033288,2]
[363850818,1748898655745,-172.76110209,0.000333,30]
[363850820,1748898655754,-932.0,0.00033315,2]
[363850822,1748898655764,-932.0,0.00033343,2]
[363850824,1748898655774,-932.0,0.0003337,2]
[363850826,1748898655783,-500.0,0.00033393,7]
[363850828,1748898655792,-932.0,0.00033398,2]
[363850830,1748898655802,-932.0,0.00033425,2]
[363850832,1748898655811,-932.0,0.00033452,2]
[363850834,1748898655820,-932.0,0.0003348,2]
[363850836,1748898655830,-1173.82401794,0.000335,2]
[363850838,1748898655839,-1000.0,0.000335,30]
[363850840,1748898655848,-1000.0,0.000335,2]
[363850842,1748898655858,-166.27,0.000335,31]
[363850844,1748898655866,-166.27,0.000335,31]
[363850846,1748898655875,-166.27,0.000335,31]
[363850848,1748898655885,-166.27,0.000335,31]
[363850850,1748898655894,-166.27,0.000335,31]
[363850852,1748898655903,-166.27,0.000335,31]
[363850854,1748898655913,-166.27,0.000335,31]
[363850856,1748898655922,-166.27,0.000335,31]
[363850858,1748898655931,-166.27,0.000335,31]
[363850860,1748898655941,-166.27,0.000335,31]
[363850862,1748898655951,-166.27,0.000335,31]
[363850864,1748898655960,-166.27,0.000335,31]
[363850866,1748898655970,-943.58298596,0.00033507,2]
[363850868,1748898655982,-152.0,0.00033515,12]
[363850870,1748898655993,-7000.0,0.0003357,2]
[363850872,1748898656003,-189702.3,0.000336,14]
[363850874,1748898656012,-347.34,0.00033627,2]
[363850876,1748898656021,-768.0,0.00033674,30]
[363850878,1748898656030,-250.0,0.000337,2]
[363850880,1748898656040,-6559.9429554,0.00033724,2]
[363850882,1748898656050,-6559.94295539,0.00033724,2]
[363850884,1748898656059,-6559.94295539,0.00033724,2]
[363850886,1748898656069,-1000.0,0.0003375,30]
[363850888,1748898656078,-600.0,0.00033766,7]
[363850890,1748898656088,-985.52,0.00033794,9]
[363850892,1748898656098,-300.0,0.00033808,2]
[363850894,1748898656108,-150.0,0.00033886,2]
[363850896,1748898656117,-500.0,0.0003398,7]
[363850898,1748898656127,-4000.0,0.00034,4]
[363850900,1748898656136,-976.96,0.00034,2]
[363850902,1748898656146,-1000.0,0.00034,13]
[363850904,1748898656155,-150.0,0.00034,2]
[363850906,1748898656165,-1800.0,0.00034,35]
[363850908,1748898656175,-1000.0,0.00034,30]
[363850910,1748898656185,-500.0,0.00034,10]
[363850912,1748898656195,-1000.0,0.00034,2]
[363850914,1748898656204,-5000.0,0.00034,2]
[363850916,1748898656214,-1000.0,0.00034,7]
[363850918,1748898656223,-2729.3773045,0.00034,120]
[363850920,1748898656233,-600.0,0.0003403,7]
[363850922,1748898656245,-88908.76458903,0.00034099,7]
[363850924,1748898656255,-151.0,0.00034099,7]
[363850926,1748898656264,-78249.70447652,0.000341,2]
[363850928,1748898656274,-454.16,0.0003411,2]
[363850930,1748898656283,-170.43,0.0003411,2]
[363850932,1748898656293,-454.16,0.0003411,2]
[363850934,1748898656303,-170.43,0.0003411,2]
[363850936,1748898656313,-170.43,0.0003411,2]
[363850938,1748898656322,-453.86,0.0003411,2]
[363850940,1748898656332,-170.22,0.0003411,2]
[363850942,1748898656342,-500.0,0.0003415,7]
[363850944,1748898656352,-278.01557771,0.0003418,2]
[363850946,1748898656362,-257.91778498,0.0003418,2]
[363850948,1748898656372,-500.0,0.00034206,60]
[363850950,1748898656383,-151.0,0.00034247,90]
[363850952,1748898656392,-106822.8576897,0.00034277,2]
[363850954,1748898656403,-591.55785023,0.00034297,2]
[363850956,1748898656412,-189702.3,0.000343,14]
[363850958,1748898656423,-985.52,0.00034342,10]
[363850960,1748898656433,-500.0,0.00034356,7]
[363850962,1748898656443,-152.0,0.00034362,13]
[363850964,1748898656452,-500.0,0.00034406,7]
[363850966,1748898656462,-1000.0,0.000345,2]
[363850968,1748898656472,-162.0,0.00034521,30]
[363850970,1748898656482,-500.0,0.00034542,7]
[363850973,1748898656494,-150.0,0.00034607,2]
[363850975,1748898656503,-9338.0,0.000347,2]
[363850976,1748898656513,-500.0,0.00034736,7]
[363850979,1748898656523,-7000.0,0.0003481,2]
[363850980,1748898656533,-38651.52514916,0.0003489,14]
[363850983,1748898656543,-985.52,0.0003489,11]
[363850985,1748898656556,-500.0,0.00034949,7]
[363850987,1748898656566,-4514.6676318,0.00034976,2]
[363850989,1748898656576,-4514.6676318,0.00034976,2]
[363850991,1748898656586,-35797.8130354,0.00034976,2]
[363850993,1748898656596,-600.0,0.0003499,7]
[363850995,1748898656610,-347.34,0.00034997,2]
[363850997,1748898656620,-3900.0,0.00035,7]
[363850999,1748898656630,-1200.36509821,0.00035,2]
[363851001,1748898656639,-1000.0,0.00035,10]
[363851003,1748898656649,-14644.01701303,0.00035,15]
[363851005,1748898656658,-228.66832437,0.00035,2]
[363851007,1748898656668,-10753.28562781,0.00035,15]
[363851009,1748898656677,-1000.0,0.00035,19]
[363851011,1748898656689,-150.0,0.00035,2]
[363851013,1748898656699,-1375.07514457,0.00035,2]
[363851015,1748898656708,-4443.59417969,0.00035,2]
[363851017,1748898656718,-317.83674537,0.00035,30]
[363851019,1748898656727,-1000.0,0.00035,15]
[363851021,1748898656737,-2000.0,0.00035,7]
[363851023,1748898656747,-1000.0,0.00035,2]